fUST/lending_fUST_20250630
["ID","MTS","AMOUNT","RATE_DAILY","PERIOD"]
[368651935,1751267446542,-4695.17493065,0.0001959,2]
[368651937,1751267446552,-798.67117612,0.00019605,2]
[368651939,1751267446562,-168.0,0.00019656,2]
[368651941,1751267446571,-828.22200964,0.0001966,2]
[368651942,1751267446581,-1000.0,0.000197,2]
[368651944,1751267446590,-858.86622399,0.00019715,2]
[368651946,1751267446599,-4695.17493065,0.00019762,2]
[368651949,1751267446610,-890.64427428,0.0001977,2]
[368651953,1751267446618,-500.79792581,0.00019773,2]
[368651955,1751267446627,-529.17637729,0.00019825,2]
[368651958,1751267446637,-1316.11,0.00019843,2]
[368651961,1751267446647,-1519.2,0.00019843,2]
[368651964,1751267446657,-460.0,0.00019843,2]
[368651966,1751267446666,-1168.12,0.00019843,2]
[368651968,1751267446676,-1663.17,0.00019843,2]
[368651970,1751267446685,-718.16,0.00019843,2]
[368651972,1751267446695,-1504.96,0.00019844,2]
[368651974,1751267446704,-784.21,0.00019844,2]
[368651976,1751267446714,-1462.84,0.00019844,2]
[368651978,1751267446723,-460.0,0.00019844,2]
[368651980,1751267446733,-1015.89,0.00019844,2]
[368651982,1751267446742,-506.85,0.00019845,2]
[368651984,1751267446751,-460.0,0.00019845,2]
[368651986,1751267446761,-233.53504227,0.00019845,2]
[368651988,1751267446771,-460.0,0.00019845,2]
[368651990,1751267446780,-460.0,0.00019845,2]
[368651992,1751267446789,-521.38,0.00019845,2]
[368651994,1751267446799,-460.0,0.00019845,2]
[368651996,1751267446809,-6391.49,0.00019845,2]
[368651998,1751267446819,-460.0,0.00019845,2]
[368652000,1751267446829,-552.9,0.00019845,2]
[368652002,1751267446838,-2845.84,0.00019845,2]
[368652004,1751267446847,-597.0,0.00019845,2]
[368652006,1751267446856,-460.0,0.00019846,2]
[368652008,1751267446866,-151.0,0.00019846,2]
[368652010,1751267446876,-151.0,0.00019846,2]
[368652012,1751267446885,-288.295922,0.00019846,2]
[368652014,1751267446895,-151.0,0.00019846,2]
[368652016,1751267446904,-151.0,0.00019846,2]
[368652018,1751267446913,-151.0,0.00019846,2]
[368652020,1751267446923,-460.0,0.00019846,2]
[368652022,1751267446932,-151.0,0.00019846,2]
[368652024,1751267446941,-151.0,0.00019846,2]
[368652026,1751267446951,-460.0,0.00019846,2]
[368652028,1751267446960,-1571.87,0.00019846,2]
[368652030,1751267446970,-460.0,0.00019846,2]
[368652032,1751267446979,-1014.71,0.00019846,2]
[368652034,1751267446989,-2695.63,0.00019846,2]
[368652036,1751267446999,-741.9,0.00019846,2]
[368652038,1751267447008,-823.42,0.00019846,2]
[368652040,1751267447017,-821.81,0.00019846,2]
[368652042,1751267447027,-820.69,0.00019846,2]
[368652044,1751267447037,-1030.83,0.00019846,2]
[368652046,1751267447047,-571.12,0.00019846,2]
[368652048,1751267447057,-460.0,0.00019847,2]
[368652050,1751267447066,-420.0,0.00019851,2]
[368652052,1751267447076,-168.0,0.00019859,2]
[368652054,1751267447090,-558.343093,0.000199,2]
[368652055,1751267447101,-168.0,0.00019913,2]
[368652057,1751267447111,-5000.0,0.00019933,2]
[368652059,1751267447121,-151.0,0.00019933,2]
[368652061,1751267447132,-151.0,0.00019933,2]
[368652064,1751267447142,-151.0,0.00019933,2]
[368652066,1751267447152,-202.442738,0.00019933,2]
[368652067,1751267447161,-151.0,0.00019933,2]
[368652069,1751267447171,-4695.17493065,0.00019934,2]
[368652071,1751267447180,-151.0,0.00019935,2]
[368652073,1751267447190,-337.474726,0.00019935,2]
[368652076,1751267447199,-151.0,0.00019935,2]
[368652077,1751267447208,-337.474726,0.00019935,2]
[368652079,1751267447218,-151.0,0.00019935,2]
[368652081,1751267447227,-1680.0,0.00019943,2]
[368652083,1751267447236,-1500.0,0.00019955,2]
[368652085,1751267447246,-151.0,0.0001999,2]
[368652087,1751267447255,-151.0,0.0001999,2]
[368652089,1751267447264,-501.60636709,0.00019996,2]
[368652091,1751267447273,-895.79,0.0002,2]
[368652093,1751267447282,-490.0,0.0002,2]
[368652095,1751267447291,-490.0,0.0002,2]
[368652097,1751267447300,-490.0,0.0002,2]
[368652099,1751267447310,-808.79,0.0002,2]
[368652101,1751267447319,-432.67833288,0.0002,2]
[368652103,1751267447328,-500.20815964,0.0002,2]
[368652105,1751267447338,-154.26,0.0002,2]
[368652107,1751267447347,-160.0,0.0002,3]
[368652109,1751267447357,-1637.45481457,0.00020014,2]
[368652111,1751267447366,-1500.0,0.00020073,2]
[368652113,1751267447376,-1500.0,0.00020093,2]
[368652115,1751267447385,-21416.85660049,0.000201,2]
[368652117,1751267447394,-151.0,0.000201,2]
[368652119,1751267447404,-151.0,0.000201,2]
[368652120,1751267447414,-151.0,0.000201,2]
[368652121,1751267447423,-151.0,0.000201,2]
[368652122,1751267447432,-151.0,0.000201,2]
[368652123,1751267447441,-151.0,0.000201,2]
[368652124,1751267447450,-151.0,0.000201,2]
[368652125,1751267447459,-151.0,0.000201,2]
[368652126,1751267447468,-151.0,0.000201,2]
[368652127,1751267447478,-152.726319,0.000201,2]
[368652128,1751267447487,-326.750667,0.000201,2]
[368652129,1751267447496,-326.750667,0.000201,2]
[368652130,1751267447505,-151.0,0.000201,2]
[368652132,1751267447514,-151.0,0.000201,2]
[368652135,1751267447524,-151.0,0.000201,2]
[368652137,1751267447534,-154.405057,0.000201,2]
[368652139,1751267447543,-151.0,0.000201,2]
[368652141,1751267447552,-151.0,0.000201,2]
[368652143,1751267447561,-151.0,0.000201,2]
[368652144,1751267447570,-151.0,0.000201,2]
[368652146,1751267447579,-151.0,0.000201,2]
[368652148,1751267447588,-151.0,0.000201,2]
[368652151,1751267447598,-251.066794,0.000201,2]
[368652152,1751267447607,-151.0,0.000201,2]
[368652154,1751267447616,-251.066794,0.000201,2]
[368652157,1751267447625,-151.0,0.000201,2]
[368652159,1751267447634,-151.0,0.000201,2]
[368652161,1751267447644,-151.0,0.000201,2]
[368652162,1751267447654,-151.585958,0.000201,2]
[368652165,1751267447663,-151.585958,0.000201,2]
[368652166,1751267447672,-151.339772,0.000201,2]
[368652169,1751267447682,-151.0,0.000201,2]
[368652171,1751267447691,-4695.17493065,0.00020107,2]
[368652173,1751267447700,-151.0,0.00020107,2]
[368652175,1751267447709,-151.0,0.00020107,2]
[368652176,1751267447718,-286.19493398,0.00020107,2]
[368652178,1751267447728,-825.0,0.00020107,2]
[368652180,1751267447737,-151.86772385,0.00020107,2]
[368652182,1751267447746,-154.15276606,0.00020107,2]
[368652185,1751267447756,-154.07651348,0.00020107,2]
[368652187,1751267447765,-198.87859106,0.00020107,2]
[368652189,1751267447775,-151.0,0.00020107,2]
[368652191,1751267447784,-151.0,0.00020107,2]
[368652192,1751267447793,-153.42752004,0.00020107,2]
[368652194,1751267447803,-151.0,0.00020107,2]
[368652196,1751267447813,-154.42158501,0.00020107,2]
[368652198,1751267447822,-157.60887009,0.00020107,2]
[368652200,1751267447832,-198.775164,0.00020107,2]
[368652203,1751267447841,-156.56154144,0.00020107,2]
[368652204,1751267447850,-156.00403038,0.00020107,2]
[368652207,1751267447860,-154.94484772,0.00020107,2]
[368652208,1751267447869,-1316.11,0.00020117,2]
[368652210,1751267447879,-1519.2,0.00020117,2]
[368652212,1751267447888,-460.0,0.00020117,2]
[368652214,1751267447897,-1168.12,0.00020117,2]
[368652216,1751267447907,-1663.17,0.00020117,2]
[368652218,1751267447916,-718.16,0.00020117,2]
[368652220,1751267447925,-1504.96,0.00020118,2]
[368652222,1751267447935,-784.21,0.00020118,2]
[368652224,1751267447944,-1462.84,0.00020118,2]
[368652226,1751267447953,-460.0,0.00020118,2]
[368652228,1751267447962,-1015.89,0.00020118,2]
[368652230,1751267447972,-506.85,0.00020119,2]
[368652232,1751267447981,-252.55,0.00020119,2]
[368652234,1751267447991,-544.58397463,0.00020119,2]
[368652236,1751267448000,-460.0,0.00020119,2]
[368652238,1751267448010,-521.38,0.00020119,2]
[368652240,1751267448019,-460.0,0.00020119,2]
[368652242,1751267448029,-6391.49,0.00020119,2]
[368652244,1751267448038,-460.0,0.00020119,2]
[368652246,1751267448048,-552.9,0.00020119,2]
[368652248,1751267448058,-2845.84,0.00020119,2]
[368652250,1751267448067,-597.0,0.00020119,2]
[368652252,1751267448083,-460.0,0.0002012,2]
[368652254,1751267448099,-460.0,0.0002012,2]
[368652256,1751267448108,-460.0,0.0002012,2]
[368652258,1751267448118,-1571.87,0.0002012,2]
[368652260,1751267448127,-460.0,0.0002012,2]
[368652262,1751267448136,-1014.71,0.0002012,2]
[368652264,1751267448146,-2695.63,0.0002012,2]
[368652266,1751267448155,-741.9,0.0002012,2]
[368652268,1751267448165,-823.42,0.0002012,2]
[368652270,1751267448174,-821.81,0.0002012,2]
[368652272,1751267448183,-820.69,0.0002012,2]
[368652274,1751267448193,-1030.83,0.0002012,2]
[368652276,1751267448202,-571.12,0.0002012,2]
[368652278,1751267448211,-1133.034,0.00020121,2]
[368652280,1751267448221,-151.0,0.00020121,2]
[368652282,1751267448231,-460.0,0.00020121,2]
[368652284,1751267448240,-150.32149087,0.00020122,2]
[368652286,1751267448250,-249.0,0.00020131,2]
[368652288,1751267448259,-152.00568453,0.00020134,2]
[368652290,1751267448269,-151.40631103,0.00020134,2]
[368652292,1751267448278,-825.0,0.00020134,2]
[368652294,1751267448288,-151.25262251,0.00020134,2]
[368652297,1751267448298,-151.0,0.00020134,2]
[368652299,1751267448307,-357.0,0.00020142,2]
[368652301,1751267448317,-825.0,0.00020162,2]
[368652303,1751267448326,-201.96831433,0.00020162,2]
[368652305,1751267448335,-168.0,0.00020184,2]
[368652306,1751267448345,-825.0,0.00020189,2]
[368652308,1751267448354,-1000.0,0.000202,2]
[368652310,1751267448364,-151.0,0.00020211,4]
[368652313,1751267448374,-825.0,0.00020217,2]
[368652315,1751267448384,-168.0,0.00020241,2]
[368652317,1751267448393,-825.0,0.00020244,2]
[368652319,1751267448403,-825.0,0.00020271,2]
[368652321,1751267448413,-357.0,0.00020279,2]
[368652323,1751267448422,-4695.17493065,0.00020279,3]
[368652325,1751267448431,-500.0,0.00020281,2]
[368652327,1751267448440,-168.0,0.0002029,2]
[368652329,1751267448450,-825.0,0.00020299,2]
[368652331,1751267448461,-151.0,0.000203,4]
[368652333,1751267448470,-364.0,0.00020315,2]
[368652335,1751267448479,-825.0,0.00020326,2]
[368652337,1751267448489,-213.84631524,0.0002034,3]
[368652339,1751267448499,-524.55407094,0.0002034,3]
[368652341,1751267448508,-12569.13231816,0.0002034,3]
[368652343,1751267448518,-847.41730813,0.0002034,3]
[368652345,1751267448527,-160.0,0.0002034,3]
[368652347,1751267448537,-556.134714,0.00020343,4]
[368652349,1751267448546,-249.0,0.00020351,2]
[368652351,1751267448555,-825.0,0.00020354,2]
[368652353,1751267448565,-177.3882618,0.00020356,2]
[368652355,1751267448575,-575.4102369,0.00020356,2]
[368652357,1751267448584,-575.4102369,0.00020356,2]
[368652359,1751267448595,-240.973124,0.00020356,2]
[368652361,1751267448604,-159.319357,0.00020356,2]
[368652363,1751267448614,-575.4102369,0.00020356,2]
[368652365,1751267448624,-575.4102369,0.00020356,2]
[368652367,1751267448633,-159.319357,0.00020356,2]
[368652369,1751267448642,-159.319357,0.00020356,2]
[368652371,1751267448653,-575.4102369,0.00020356,2]
[368652373,1751267448662,-159.319357,0.00020356,2]
[368652375,1751267448672,-1083.2205885,0.00020356,2]
[368652377,1751267448681,-318.638714,0.00020356,2]
[368652379,1751267448690,-825.0,0.00020381,2]
[368652381,1751267448700,-1316.11,0.00020391,2]
[368652383,1751267448709,-1519.2,0.00020391,2]
[368652385,1751267448718,-372.06860662,0.00020391,2]
[368652399,1751267448826,-1168.12,0.00020391,2]
[368652402,1751267448849,-1663.17,0.00020391,2]
[368652404,1751267448859,-718.16,0.00020391,2]
[368652406,1751267448868,-1504.96,0.00020392,2]
[368652408,1751267448877,-784.21,0.00020392,2]
[368652410,1751267448887,-1462.84,0.00020392,2]
[368652412,1751267448896,-460.0,0.00020392,2]
[368652414,1751267448906,-1015.89,0.00020392,2]
[368652416,1751267448915,-506.85,0.00020393,2]
[368652418,1751267448925,-460.0,0.00020393,2]
[368652420,1751267448935,-521.38,0.00020393,2]
[368652422,1751267448945,-460.0,0.00020393,2]
[368652424,1751267448954,-6391.49,0.00020393,2]
[368652426,1751267448963,-460.0,0.00020393,2]
[368652428,1751267448973,-552.9,0.00020393,2]
[368652430,1751267448982,-155.278732,0.00020393,2]
[368652432,1751267448992,-151.0,0.00020393,2]
[368652434,1751267449001,-2845.84,0.00020393,2]
[368652436,1751267449010,-193.587447,0.00020393,2]
[368652438,1751267449020,-597.0,0.00020393,2]
[368652440,1751267449029,-151.0,0.00020394,2]
[368652442,1751267449039,-151.0,0.00020394,2]
[368652444,1751267449048,-151.840684,0.00020394,2]
[368652446,1751267449057,-460.0,0.00020394,2]
[368652448,1751267449067,-460.0,0.00020394,2]
[368652450,1751267449076,-151.0,0.00020394,2]
[368652452,1751267449088,-172.785604,0.00020394,2]
[368652454,1751267449098,-227.770671,0.00020394,2]
[368652456,1751267449107,-405.88414071,0.00020394,2]
[368652458,1751267449117,-337.474726,0.00020394,2]
[368652460,1751267449127,-151.0,0.00020394,2]
[368652462,1751267449136,-337.474726,0.00020394,2]
[368652464,1751267449146,-1571.87,0.00020394,2]
[368652466,1751267449157,-151.0,0.00020394,2]
[368652468,1751267449166,-460.0,0.00020394,2]
[368652470,1751267449175,-818.46403037,0.00020394,2]
[368652477,1751267449233,-460.0,0.00018203,2]
[368652479,1751267449243,-2674.8239456,0.00019843,2]
[368652481,1751267449253,-196.24596963,0.00020394,2]
[368652483,1751267449264,-2695.63,0.00020394,2]
[368652485,1751267449274,-700.91008472,0.00020394,2]
[368652487,1751267449286,-40.98991528,0.00020394,2]
[368652489,1751267449295,-674.68642882,0.00020394,2]
[368652491,1751267449307,-148.73357118,0.00020394,2]
[368652493,1751267449316,-621.93642882,0.00020394,2]
[368652496,1751267449328,-199.87357118,0.00020394,2]
[368652498,1751267449338,-4142.10380412,0.00020394,2]
[368652500,1751267449350,-304.2614001,0.00020394,2]
[368652521,1751267449544,-151.0,0.0001942,2]
[368652523,1751267449555,-177.5677436,0.00019534,2]
[368652525,1751267449565,-3318.60759188,0.00020394,2]
[368652527,1751267449577,-994.85122693,0.00020394,2]
[368652542,1751267449710,-569.42506791,0.00019248,2]
[368652544,1751267449720,-569.42506791,0.00019248,2]
[368652546,1751267449729,-569.42506791,0.00019248,2]
[368652548,1751267449739,-569.42506791,0.00019248,2]
[368652550,1751267449748,-569.42506791,0.00019248,2]
[368652552,1751267449757,-569.42506791,0.00019248,2]
[368652554,1751267449767,-569.42506791,0.00019248,2]
[368652556,1751267449776,-569.42506791,0.00019248,2]
[368652558,1751267449785,-569.42506791,0.00019248,2]
[368652560,1751267449794,-569.42506791,0.00019248,2]
[368652562,1751267449803,-575.4102369,0.00019534,2]
[368652564,1751267449813,-15102.24855417,0.00020394,2]
[368657959,1751267707976,214.77596287,0.000181,2]
[368657960,1751267782283,1000.0,0.00022,120]
[368657963,1751267912148,8250.45664477,0.000218,120]
[368657965,1751267945180,187.92896745,0.00018098,2]
[368657967,1751267978763,1797.5131144,0.00017202,2]
[368657968,1751267978786,10000.0,0.00017202,2]
[368657969,1751267978809,10000.0,0.00017202,2]
[368657970,1751267978831,3102.4868856,0.00017202,2]
[368657972,1751268043294,159.495389,0.00013699,2]
[368657973,1751268101084,168.0,0.00017903,2]
[368657975,1751268126353,3854.72,0.000181,2]
[368657978,1751268210394,164.43784658,0.00018098,2]
[368657979,1751268283041,-168.0,0.00018163,2]
[368657980,1751268283063,-346.23248409,0.00018182,2]
[368657981,1751268283085,-1200.0,0.00018196,2]
[368657982,1751268283107,-460.0,0.00018197,2]
[368657983,1751268283127,-300.0,0.00018197,2]
[368657984,1751268283150,-460.0,0.00018197,2]
[368657985,1751268283171,-461.66475923,0.00018197,2]
[368657986,1751268283192,-460.90261419,0.00018197,2]
[368657987,1751268283214,-804.55,0.00018197,2]
[368657988,1751268283235,-460.0,0.00018197,2]
[368657989,1751268283255,-460.0,0.00018197,2]
[368657990,1751268283276,-280.14988594,0.00018197,2]
[368657991,1751268283296,-138.50025655,0.00018197,2]
[368657993,1751268452854,623.8446948,0.00017337,2]
[368657995,1751268479079,162.0,0.000181,2]
[368657996,1751268491592,162.0,0.000181,2]
[368657997,1751268493283,162.0,0.000181,2]
[368657998,1751268500591,164.43784651,0.00018097,2]
[368657999,1751268501397,162.0,0.000181,3]
[368658000,1751268506675,151.45737289,0.00017453,2]
[368658001,1751268515418,963.11996462,0.00017,2]
[368658002,1751268515441,10000.0,0.00017,2]
[368658003,1751268515463,10000.0,0.00017,2]
[368658004,1751268515484,10000.0,0.00017,2]
[368658005,1751268515506,10000.0,0.00017,2]
[368658006,1751268515528,10000.0,0.00017,2]
[368658007,1751268515554,4906.45635788,0.00017,2]
[368658008,1751268516489,166.27149543,0.000181,3]
[368658018,1751268557196,5000.0,0.000181,2]
[368658020,1751268574281,93.54364212,0.000181,2]
[368658021,1751268574304,4906.45635788,0.000181,2]
[368658025,1751268590279,5000.0,0.000181,2]
[368658028,1751268605746,93.54364212,0.000181,2]
[368658029,1751268605770,4906.45635788,0.000181,2]
[368658030,1751268623532,5000.0,0.000181,2]
[368658199,1751268638841,-300.0,0.00018195,2]
[368658200,1751268638851,-115.045453,0.00018195,2]
[368658201,1751268638863,-1084.954547,0.00018195,2]
[368658202,1751268638873,-153.79010907,0.00018196,2]
[368658203,1751268638884,-250.62323991,0.00018196,2]
[368658204,1751268638894,-460.0,0.00018196,2]
[368658206,1751268638903,-460.0,0.00018196,2]
[368658207,1751268638913,-460.0,0.00018196,2]
[368658208,1751268638922,-462.790081,0.00018196,2]
[368658209,1751268638932,-460.0,0.00018196,2]
[368658210,1751268638941,-460.0,0.00018196,2]
[368658211,1751268638951,-813.35,0.00018196,2]
[368658212,1751268638961,-467.8832219,0.00018196,2]
[368658213,1751268638970,-460.0,0.00018196,2]
[368658214,1751268638979,-125.09847304,0.00018196,2]
[368658215,1751268638991,-121.23453196,0.00018196,2]
[368658216,1751268639000,-460.0,0.00018196,2]
[368658217,1751268639009,-460.0,0.00018196,2]
[368658218,1751268639018,-235.25046807,0.00018196,2]
[368658219,1751268639030,-56.149272,0.00018196,2]
[368658220,1751268639039,-500.0,0.00018196,2]
[368658221,1751268639048,-1385.89,0.00018196,2]
[368658222,1751268639057,-197.29767371,0.00018197,2]
[368658223,1751268639069,-287.70733921,0.00018197,2]
[368658224,1751268639083,-1271.97193947,0.00018197,2]
[368658225,1751268639095,-709.59188701,0.00018197,2]
[368658226,1751268639114,-1745.12790437,0.00018197,2]
[368658227,1751268639124,-1213.77775019,0.00018197,2]
[368658228,1751268639134,-321.49974345,0.00018197,2]
[368658229,1751268639143,-460.0,0.00018197,2]
[368658230,1751268639153,-522.54799581,0.00018197,2]
[368658231,1751268639162,-460.0,0.00018197,2]
[368658232,1751268639172,-461.93272795,0.00018197,2]
[368658233,1751268639182,-460.0,0.00018197,2]
[368658234,1751268639192,-460.0,0.00018197,2]
[368658235,1751268639202,-460.0,0.00018197,2]
[368658236,1751268639211,-460.0,0.00018197,2]
[368658237,1751268639221,-460.0,0.00018197,2]
[368658238,1751268639230,-500.0,0.00018197,2]
[368658239,1751268639239,-460.0,0.00018197,2]
[368658240,1751268639249,-435.33679925,0.00018197,2]
[368658241,1751268639258,-460.0,0.00018197,2]
[368658242,1751268639267,-1110.16,0.00018197,2]
[368658243,1751268639277,-460.0,0.00018197,2]
[368658244,1751268639286,-460.0,0.00018197,2]
[368658245,1751268639295,-653.22,0.00018197,2]
[368658246,1751268639305,-460.0,0.00018197,2]
[368658247,1751268639314,-1316.35,0.00018197,2]
[368658248,1751268639323,-460.0,0.00018197,2]
[368658249,1751268639332,-460.0,0.00018197,2]
[368658250,1751268639342,-460.0,0.00018197,2]
[368658251,1751268639351,-460.0,0.00018197,2]
[368658252,1751268639360,-460.0,0.00018197,2]
[368658253,1751268639369,-460.0,0.00018197,2]
[368658254,1751268639378,-460.0,0.00018197,2]
[368658255,1751268639388,-460.0,0.00018197,2]
[368658256,1751268639398,-462.98686536,0.00018197,2]
[368658257,1751268639407,-449.15968681,0.00018197,2]
[368658258,1751268639416,-460.0,0.00018197,2]
[368658259,1751268639426,-460.0,0.00018197,2]
[368658260,1751268639435,-460.0,0.00018197,2]
[368658261,1751268639446,-460.0,0.00018197,2]
[368658262,1751268639456,-460.0,0.00018197,2]
[368658263,1751268639465,-460.0,0.00018197,2]
[368658264,1751268639474,-460.0,0.00018197,2]
[368658265,1751268639483,-5386.86,0.00018197,2]
[368658266,1751268639492,-460.0,0.00018197,2]
[368658267,1751268639502,-1114.83,0.00018197,2]
[368658268,1751268639511,-460.0,0.00018197,2]
[368658269,1751268639521,-460.0,0.00018197,2]
[368658270,1751268639530,-460.0,0.00018197,2]
[368658271,1751268639539,-460.0,0.00018197,2]
[368658272,1751268639549,-460.0,0.00018197,2]
[368658273,1751268639559,-1287.64625245,0.00018197,2]
[368658274,1751268639571,-154.43374755,0.00018197,2]
[368658275,1751268639581,-460.0,0.00018197,2]
[368658276,1751268639592,-460.0,0.00018197,2]
[368658277,1751268639602,-460.0,0.00018197,2]
[368658278,1751268639611,-73.53230481,0.00018197,2]
[368658279,1751268639623,-1202.49769519,0.00018197,2]
[368658280,1751268639633,-601.56,0.00018197,2]
[368658281,1751268639643,-460.0,0.00018197,2]
[368658282,1751268639652,-460.0,0.00018197,2]
[368658283,1751268639664,-500.0,0.00018197,2]
[368658284,1751268639674,-460.0,0.00018197,2]
[368658285,1751268639683,-460.0,0.00018197,2]
[368658286,1751268639693,-466.35,0.00018197,2]
[368658287,1751268639702,-460.0,0.00018197,2]
[368658288,1751268639711,-460.0,0.00018197,2]
[368658289,1751268639721,-460.0,0.00018197,2]
[368658290,1751268639730,-460.0,0.00018197,2]
[368658291,1751268639740,-460.0,0.00018197,2]
[368658292,1751268639750,-460.0,0.00018197,2]
[368658293,1751268639760,-460.0,0.00018197,2]
[368658294,1751268639769,-460.0,0.00018197,2]
[368658295,1751268639778,-460.0,0.00018197,2]
[368658296,1751268639787,-460.0,0.00018197,2]
[368658297,1751268639796,-460.0,0.00018197,2]
[368658298,1751268639806,-460.0,0.00018197,2]
[368658299,1751268639815,-460.0,0.00018197,2]
[368658300,1751268639824,-460.0,0.00018197,2]
[368658301,1751268639834,-460.0,0.00018197,2]
[368658302,1751268639843,-460.0,0.00018197,2]
[368658303,1751268639852,-460.0,0.00018197,2]
[368658304,1751268639862,-531.66,0.00018197,2]
[368658305,1751268639871,-460.0,0.00018197,2]
[368658306,1751268639881,-460.0,0.00018197,2]
[368658307,1751268639890,-460.0,0.00018197,2]
[368658308,1751268639899,-460.0,0.00018198,2]
[368658309,1751268639909,-460.0,0.00018198,2]
[368658310,1751268639918,-460.0,0.00018198,2]
[368658311,1751268639928,-460.0,0.00018198,2]
[368658312,1751268639937,-472.30094572,0.00018198,2]
[368658313,1751268639947,-460.0,0.00018198,2]
[368658314,1751268639956,-460.0,0.00018198,2]
[368658315,1751268639965,-469.8692661,0.00018198,2]
[368658316,1751268639975,-460.0,0.00018198,2]
[368658317,1751268639985,-460.0,0.00018198,2]
[368658318,1751268639994,-460.0,0.00018198,2]
[368658319,1751268640004,-460.0,0.00018198,2]
[368658320,1751268640013,-460.0,0.00018198,2]
[368658321,1751268640022,-460.0,0.00018198,2]
[368658322,1751268640032,-460.0,0.00018198,2]
[368658323,1751268640042,-551.56,0.00018198,2]
[368658324,1751268640052,-460.0,0.00018198,2]
[368658325,1751268640061,-460.0,0.00018198,2]
[368658326,1751268640071,-460.0,0.00018198,2]
[368658327,1751268640080,-460.0,0.00018198,2]
[368658328,1751268640089,-464.98179583,0.00018198,2]
[368658330,1751268640099,-503.41265806,0.00018198,2]
[368658332,1751268640319,-460.0,0.00018198,2]
[368658333,1751268640329,-460.0,0.00018198,2]
[368658334,1751268640339,-460.0,0.00018198,2]
[368658335,1751268640348,-460.0,0.00018198,2]
[368658336,1751268640358,-460.0,0.00018198,2]
[368658337,1751268640367,-92.42890092,0.00018198,2]
[368658338,1751268640379,-367.57109908,0.00018198,2]
[368658339,1751268640388,-460.0,0.00018198,2]
[368658340,1751268640397,-500.0,0.00018198,2]
[368658341,1751268640407,-460.0,0.00018198,2]
[368658342,1751268640416,-460.0,0.00018198,2]
[368658343,1751268640425,-460.0,0.00018198,2]
[368658344,1751268640434,-460.0,0.00018198,2]
[368658345,1751268640445,-503.29351089,0.00018198,2]
[368658346,1751268640454,-460.0,0.00018198,2]
[368658347,1751268640464,-578.38,0.00018198,2]
[368658348,1751268640473,-460.0,0.00018198,2]
[368658349,1751268640482,-460.0,0.00018198,2]
[368658350,1751268640491,-460.0,0.00018198,2]
[368658351,1751268640501,-264.23626193,0.00018198,2]
[368658352,1751268640513,-195.76373807,0.00018198,2]
[368658353,1751268640522,-460.0,0.00018198,2]
[368658354,1751268640531,-661.2,0.00018198,2]
[368658355,1751268640541,-460.0,0.00018198,2]
[368658356,1751268640551,-463.64439017,0.00018198,2]
[368658357,1751268640560,-392.7958885,0.00018198,2]
[368658358,1751268640570,-460.0,0.00018198,2]
[368658360,1751268640582,-884.14,0.00018198,2]
[368658362,1751268640591,-460.0,0.00018198,2]
[368658364,1751268640600,-471.3,0.00018198,2]